bitfinex-derivatives/quotes_BTCF0:USTF0_20241217
["timestamp","ask_amount","ask_price","bid_price","bid_amount"]
[1734463646958,0.407552,106930.0,106920.0,9.38e-05]
[1734463647257,0.17612324,106940.0,106920.0,0.3608938]
[1734463647456,0.00148084,106940.0,106930.0,0.407552]
[1734463647663,0.00148084,106940.0,106930.0,0.046752]
[1734463647664,7.749e-05,106940.0,106930.0,0.046752]
[1734463647850,0.36087749,106940.0,106930.0,0.046752]
[1734463648046,7.749e-05,106940.0,106930.0,0.046752]
[1734463648255,0.36087749,106940.0,106930.0,0.046752]
[1734463648650,7.749e-05,106940.0,106930.0,0.407552]
[1734463649055,7.749e-05,106940.0,106930.0,0.046752]
[1734463649660,0.36087749,106940.0,106930.0,0.046752]
[1734463650157,0.00057749,106940.0,106930.0,0.046752]
[1734463650548,0.36137749,106940.0,106930.0,0.046752]
[1734463650761,0.00057749,106940.0,106930.0,0.046752]
[1734463650952,0.36137749,106940.0,106930.0,0.046752]
[1734463651148,7.749e-05,106940.0,106930.0,0.046752]
[1734463651858,0.36087749,106940.0,106930.0,0.046752]
[1734463652059,0.04682549,106940.0,106930.0,0.046752]
[1734463652458,0.40762549,106940.0,106930.0,0.26541849]
[1734463653155,0.36087749,106940.0,106930.0,0.26541849]
[1734463653357,0.36087749,106940.0,106930.0,0.32236749]
[1734463653556,0.40762549,106940.0,106930.0,0.26997297]
[1734463653755,0.40762549,106940.0,106930.0,0.22322097]
[1734463654158,0.40762549,106940.0,106920.0,0.49893026]
[1734463654464,0.407552,106930.0,106920.0,0.22331477]
[1734463654674,0.5821944,106930.0,106910.0,0.22322097]
[1734463654968,0.3608,106920.0,106890.0,0.2233041]
[1734463655264,1.02060488,106930.0,106890.0,0.2700731]
[1734463655265,0.3608,106900.0,106890.0,0.2700731]
[1734463655664,0.407564,106910.0,106890.0,0.27017187]
[1734463655961,0.3608,106900.0,106890.0,0.27017187]
[1734463656773,0.3608,106900.0,106890.0,0.44481427]
[1734463657059,0.3608,106900.0,106890.0,0.27017187]
[1734463657458,0.407565,106900.0,106890.0,0.27017187]
[1734463657757,0.407565,106900.0,106890.0,0.22340287]
[1734463657964,0.407565,106900.0,106890.0,9.877e-05]
[1734463658163,0.5822074,106900.0,106890.0,9.877e-05]
[1734463658369,0.04677,106890.0,106880.0,0.0005]
[1734463658553,0.5822124,106890.0,106880.0,0.0005]
[1734463659176,0.046778,106870.0,106860.0,0.27561549]
[1734463659358,0.9430204,106870.0,106860.0,5.057e-05]
[1734463660461,1.2430204,106870.0,106860.0,0.16727978]
[1734463660771,0.046786,106860.0,106840.0,0.16722921]
[1734463660962,0.046786,106860.0,106840.0,0.21401921]
[1734463661162,0.046786,106860.0,106850.0,0.16722921]
[1734463661370,0.046787,106850.0,106840.0,0.16722921]
[1734463661566,0.407587,106850.0,106840.0,0.16722921]
[1734463662773,0.407587,106850.0,106840.0,0.21402021]
[1734463663175,0.3608,106860.0,106840.0,0.046791]
[1734463663475,0.3608,106860.0,106840.0,0.046788]
[1734463663666,0.407583,106860.0,106840.0,0.046788]
[1734463663867,0.3608,106850.0,106840.0,0.046788]
[1734463664370,0.3608,106850.0,106840.0,0.093576]
[1734463665169,0.3608,106860.0,106850.0,0.01360366]
[1734463665372,0.3608,106860.0,106850.0,0.046787]
[1734463665569,0.407583,106860.0,106850.0,0.046787]
[1734463666370,0.407583,106860.0,106840.0,0.04679]
[1734463666576,0.3608,106850.0,106840.0,0.04679]
[1734463666877,0.3608,106860.0,106830.0,0.79441149]
[1734463667175,0.3608,106860.0,106850.0,0.046786]
[1734463668779,0.36086929,106870.0,106860.0,0.046783]
[1734463670075,0.36086929,106870.0,106850.0,0.047286]
[1734463670281,0.36086929,106870.0,106850.0,0.094068]
[1734463670282,0.40764829,106870.0,106850.0,0.094068]
[1734463670573,0.3608,106860.0,106850.0,0.047284]
[1734463670970,0.407583,106860.0,106850.0,0.047284]
[1734463672476,0.407583,106860.0,106850.0,0.0005]
[1734463675078,0.407583,106860.0,106840.0,0.04679]
[1734463675269,0.3608,106850.0,106840.0,0.04679]
[1734463676275,0.3608,106850.0,106840.0,0.04729]
[1734463676771,0.3608,106860.0,106850.0,0.046787]
[1734463677582,0.407583,106860.0,106850.0,0.046787]
[1734463677884,0.407583,106860.0,106850.0,0.21346662]
[1734463679375,0.407583,106860.0,106850.0,0.32240249]
[1734463680376,0.407583,106860.0,106850.0,0.27561549]
[1734463680576,0.407583,106860.0,106850.0,0.32240249]
[1734463680778,0.3608,106860.0,106850.0,0.32240249]
[1734463681175,0.3608,106860.0,106850.0,0.47579649]
[1734463681377,0.3608,106860.0,106850.0,0.38188844]
[1734463681672,0.3608,106860.0,106850.0,0.53528244]
[1734463682273,0.3608,106860.0,106850.0,0.200181]
[1734463683376,0.3608,106860.0,106850.0,0.59113268]
[1734463683784,0.3608,106860.0,106850.0,0.59128545]
[1734463686083,0.52102886,106860.0,106850.0,0.54449845]
[1734463686387,0.52102886,106860.0,106850.0,0.15354677]
[1734463686682,0.046787,106850.0,106840.0,0.39095168]
[1734463686890,0.52103286,106850.0,106840.0,0.99647964]
[1734463687084,2.02103286,106850.0,106840.0,0.33591247]
[1734463687278,0.52103286,106850.0,106840.0,0.33591247]
[1734463687473,0.52103286,106850.0,106830.0,0.83775361]
[1734463687474,0.046791,106840.0,106830.0,0.83775361]
[1734463687791,0.407591,106840.0,106830.0,0.83775361]
[1734463687978,0.407591,106840.0,106830.0,0.39095168]
[1734463689286,0.407591,106840.0,106810.0,0.83916579]
[1734463689287,0.046796,106830.0,106810.0,0.83916579]
[1734463689487,0.7684,106820.0,106810.0,0.39242114]
[1734463689985,0.7684,106820.0,106810.0,0.0005]
[1734463690180,0.046805,106810.0,106800.0,0.39192114]
[1734463690382,0.52105086,106810.0,106800.0,0.83872307]
[1734463690583,0.046809,106800.0,106790.0,0.83872307]
[1734463690792,0.046813,106790.0,106780.0,0.4511394]
[1734463690993,0.407613,106790.0,106780.0,0.4511394]
[1734463691297,0.407613,106790.0,106780.0,0.05921826]
[1734463691793,0.407613,106790.0,106780.0,0.4323258]
[1734463691994,0.3608,106790.0,106780.0,0.89924779]
[1734463692297,0.52105886,106790.0,106780.0,0.33513971]
[1734463692590,0.046822,106770.0,106760.0,0.33513971]
[1734463692892,0.52106786,106770.0,106760.0,0.33513971]
[1734463693190,0.52106786,106770.0,106750.0,0.31723689]
[1734463693413,0.52106786,106770.0,106750.0,0.28073689]
[1734463693414,0.52107186,106760.0,106750.0,0.28073689]
[1734463693589,0.63451772,106760.0,106750.0,0.6158766]
[1734463693896,0.52107186,106760.0,106750.0,0.00140482]
[1734463695591,0.046835,106740.0,106730.0,0.01873705]
[1734463695799,0.407635,106740.0,106720.0,0.083143]
[1734463696093,0.52108086,106740.0,106720.0,0.083143]
[1734463696294,0.40764,106730.0,106720.0,0.0363]
[1734463696505,0.52108586,106730.0,106720.0,0.0363]
[1734463696798,0.046847,106720.0,106700.0,0.32486866]
[1734463696995,0.52109286,106720.0,106700.0,0.32486866]
[1734463697295,0.046848,106710.0,106690.0,0.39917266]
[1734463697485,0.046845,106720.0,106700.0,0.407649]
[1734463697689,0.40764,106730.0,106710.0,0.52109286]
[1734463698401,0.40764,106730.0,106710.0,0.16029286]
[1734463698601,0.046844,106720.0,106710.0,0.046847]
[1734463698798,0.407644,106720.0,106710.0,0.046847]
[1734463698996,0.3608,106720.0,106690.0,0.50138311]
[1734463699199,0.046853,106700.0,106690.0,0.14108311]
[1734463699402,0.046853,106700.0,106690.0,0.09422711]
[1734463699403,0.407653,106700.0,106690.0,0.09422711]
[1734463700698,0.407653,106700.0,106690.0,0.0748]
[1734463700915,0.407653,106700.0,106690.0,0.0368]
[1734463701505,0.407653,106700.0,106690.0,0.0005]
[1734463702189,0.52109886,106700.0,106690.0,0.0005]
[1734463704501,0.046862,106680.0,106670.0,0.01882007]
[1734463704699,0.407662,106680.0,106660.0,0.0841]
[1734463704899,0.3608,106670.0,106650.0,0.33034362]
[1734463705101,0.407667,106670.0,106660.0,0.01]
[1734463710002,0.52111286,106670.0,106660.0,0.01]
[1734463715204,0.52111286,106670.0,106660.0,0.0105]
[1734463719206,0.52111286,106670.0,106660.0,0.01]
[1734463719810,0.52111286,106670.0,106640.0,0.01880364]
[1734463720006,0.85830189,106680.0,106630.0,0.20488028]
[1734463720007,0.046879,106640.0,106630.0,0.00140655]
[1734463720314,0.52112486,106640.0,106630.0,0.01140655]
[1734463721014,0.63457072,106640.0,106610.0,0.20157373]
[1734463721309,0.63457072,106640.0,106600.0,0.39579284]
[1734463721310,0.88193386,106620.0,106600.0,0.39579284]
[1734463721606,0.88193386,106620.0,106600.0,0.17517373]
[1734463721607,0.407692,106610.0,106600.0,0.17517373]
[1734463721999,1.8608,106630.0,106600.0,0.94941959]
[1734463722206,0.40778822,106640.0,106620.0,0.34406497]
[1734463722415,0.046884,106630.0,106620.0,0.5092387]
[1734463722614,0.407684,106630.0,106620.0,0.26681911]
[1734463722907,0.407684,106630.0,106620.0,0.43386819]
[1734463723111,0.407684,106630.0,106620.0,0.26681911]
[1734463723310,0.407684,106630.0,106620.0,0.48642483]
[1734463724099,0.407684,106630.0,106620.0,0.54714923]
[1734463724313,0.407684,106630.0,106620.0,0.48642483]
[1734463725207,0.407684,106630.0,106620.0,0.48692483]
[1734463726009,0.407684,106630.0,106620.0,0.45072483]
[1734463726201,0.407684,106630.0,106620.0,0.45022483]
[1734463726403,0.046884,106630.0,106620.0,0.45022483]
[1734463726904,0.046884,106630.0,106620.0,0.62163665]
[1734463727106,0.407684,106630.0,106620.0,0.45022483]
[1734463727413,0.407684,106630.0,106620.0,0.45072483]
[1734463728209,0.407684,106630.0,106620.0,0.45022483]
[1734463729113,0.407684,106630.0,106620.0,0.4698226]
[1734463729311,0.407684,106630.0,106620.0,0.64123442]
[1734463729716,0.407684,106630.0,106620.0,0.80344259]
[1734463730104,0.407684,106630.0,106620.0,0.4698226]
[1734463730309,0.407684,106630.0,106620.0,0.19180594]
[1734463730617,0.407684,106630.0,106620.0,0.36321776]
[1734463730925,0.407684,106630.0,106620.0,0.45175061]
[1734463731224,0.407684,106630.0,106620.0,0.51320134]
[1734463731413,0.407684,106630.0,106620.0,0.67813905]
[1734463731612,0.407684,106630.0,106620.0,0.51320134]
[1734463731913,2.02112986,106630.0,106620.0,0.16781029]
[1734463732306,2.02112986,106630.0,106620.0,0.06116919]
[1734463732307,2.32112986,106630.0,106620.0,0.06116919]
[1734463732520,0.046888,106620.0,106610.0,0.06116919]
[1734463732709,0.407688,106620.0,106610.0,0.06116919]
[1734463734409,0.52113386,106620.0,106610.0,0.06116919]
[1734463734611,0.046893,106610.0,106600.0,0.04100827]
[1734463734810,0.407693,106610.0,106600.0,0.04100827]
[1734463735311,0.407693,106610.0,106600.0,0.04150827]
[1734463736105,0.52113886,106610.0,106600.0,0.04150827]
[1734463736308,2.08993886,106610.0,106600.0,0.04100827]
[1734463736512,0.046897,106600.0,106580.0,0.32055071]
[1734463736721,0.768501,106590.0,106580.0,0.27954244]
[1734463737022,0.768501,106590.0,106580.0,0.04102841]
[1734463737318,0.88194686,106590.0,106580.0,0.04102841]
[1734463738436,0.82919396,106590.0,106580.0,0.04102841]
[1734463738804,0.7157481,106590.0,106580.0,0.04102841]
[1734463741218,0.7157481,106590.0,106580.0,0.04152841]
[1734463742322,0.7157481,106590.0,106580.0,0.04102841]
[1734463743212,0.7157481,106590.0,106580.0,0.04152841]
[1734463744009,0.79177836,106590.0,106580.0,0.04152841]
[1734463744711,0.79177836,106590.0,106580.0,0.0005]
[1734463745324,0.01742658,106610.0,106580.0,0.81286052]
[1734463745514,0.407694,106610.0,106600.0,0.07603026]
[1734463745715,0.407694,106610.0,106590.0,0.3555727]
[1734463745915,0.046897,106600.0,106590.0,0.3555727]
[1734463746217,0.046897,106600.0,106590.0,1.01497977]
[1734463746423,0.046897,106600.0,106590.0,1.16887882]
[1734463746614,0.046897,106600.0,106590.0,0.79424149]
[1734463747223,0.046897,106600.0,106590.0,1.16887882]
[1734463748026,0.046897,106600.0,106590.0,0.79424149]
[1734463748426,0.046897,106600.0,106590.0,0.84831904]
[1734463748625,0.046897,106600.0,106590.0,0.8637619]
[1734463748923,0.046897,106600.0,106590.0,0.86362043]
[1734463750523,0.046897,106600.0,106590.0,0.50282043]
[1734463752129,0.407697,106600.0,106590.0,0.54383879]
[1734463752433,0.407697,106600.0,106590.0,0.50282043]
[1734463753228,0.407697,106600.0,106590.0,0.54383879]
[1734463753446,0.407697,106600.0,106590.0,0.54561641]
[1734463754320,0.407697,106600.0,106590.0,0.21199642]
[1734463756232,0.407697,106600.0,106590.0,0.17097806]
[1734463757933,0.407697,106600.0,106590.0,0.21230982]
[1734463758238,0.046893,106610.0,106590.0,0.94605987]
[1734463758428,0.046893,106610.0,106600.0,0.95086597]
[1734463758737,0.407693,106610.0,106600.0,0.99045325]
[1734463759139,0.3608,106620.0,106600.0,1.01236337]
[1734463759432,0.407688,106620.0,106610.0,0.61802919]
[1734463759632,0.407688,106620.0,106610.0,0.50406078]
[1734463760228,0.407688,106620.0,106610.0,0.94888744]
[1734463760922,0.407688,106620.0,106610.0,0.1119]
[1734463761125,0.046888,106620.0,106610.0,0.55672666]
[1734463761530,0.046888,106620.0,106610.0,0.81792956]
[1734463761735,0.046888,106620.0,106610.0,0.79477977]
[1734463762436,0.046888,106620.0,106610.0,0.60901421]
[1734463762635,0.046888,106620.0,106610.0,0.79037059]
[1734463762930,0.407688,106620.0,106610.0,1.05707918]
[1734463763638,0.407688,106620.0,106610.0,0.57551771]
[1734463763836,0.407688,106620.0,106610.0,0.96749508]
[1734463765134,0.407688,106620.0,106610.0,1.08146349]
[1734463765439,0.046886,106630.0,106610.0,1.35028612]
[1734463765624,0.40778922,106640.0,106620.0,0.92283338]
[1734463765827,0.40778922,106640.0,106630.0,0.39177828]
[1734463766245,0.40828922,106640.0,106630.0,0.39177828]
[1734463767128,0.046884,106630.0,106620.0,0.83984325]
[1734463767329,0.046884,106630.0,106620.0,1.31461166]
[1734463767537,0.046884,106630.0,106620.0,0.92283338]
[1734463767934,0.046884,106630.0,106620.0,0.88480044]
[1734463768642,0.046884,106630.0,106620.0,0.52400044]
[1734463768841,0.046884,106630.0,106620.0,0.91562427]
[1734463769232,0.046884,106630.0,106620.0,0.52400044]
[1734463769429,0.046884,106630.0,106620.0,0.91566315]
[1734463769639,0.046884,106630.0,106620.0,0.91565865]
[1734463769846,0.407684,106630.0,106620.0,0.83972318]
[1734463770138,0.046884,106630.0,106620.0,0.91565865]
[1734463770545,0.046884,106630.0,106620.0,0.52400044]
[1734463770938,0.407684,106630.0,106620.0,0.52400044]
[1734463771139,0.407684,106630.0,106620.0,0.46758174]
[1734463771645,0.046888,106620.0,106610.0,0.55973448]
[1734463771847,0.407688,106620.0,106610.0,0.46361771]
[1734463772036,0.407688,106620.0,106610.0,0.56037897]
[1734463772544,0.407688,106620.0,106610.0,1.00860042]
[1734463772743,0.40184582,106620.0,106610.0,1.00860042]
[1734463773441,0.40184582,106620.0,106610.0,1.00874634]
[1734463773647,0.40184582,106620.0,106610.0,0.61668747]
[1734463774345,0.40184582,106620.0,106610.0,0.79795607]
[1734463775245,0.40184582,106620.0,106610.0,0.63678798]
[1734463775443,0.3608,106620.0,106610.0,1.16090789]
[1734463775644,0.046888,106620.0,106610.0,1.46357659]
[1734463775968,0.046888,106620.0,106610.0,1.68329442]
[1734463776136,0.046888,106620.0,106610.0,1.67450794]
[1734463776333,0.046888,106620.0,106610.0,1.46379408]
[1734463777137,0.046888,106620.0,106610.0,0.85215742]
[1734463777540,0.046888,106620.0,106610.0,1.46379408]
[1734463778545,0.046888,106620.0,106610.0,1.55807713]
[1734463778948,0.046888,106620.0,106610.0,0.82900763]
[1734463779939,0.046888,106620.0,106610.0,1.3334108]
[1734463780140,0.046888,106620.0,106610.0,1.15192471]
[1734463780340,0.046888,106620.0,106610.0,1.33357304]
[1734463780634,0.046888,106620.0,106610.0,1.22590654]
[1734463780945,0.046888,106620.0,106610.0,0.72150337]
[1734463785352,0.046888,106620.0,106610.0,0.72151231]
[1734463786766,0.046888,106620.0,106610.0,0.50720788]
[1734463787052,0.046888,106620.0,106610.0,1.67487787]
[1734463787547,0.046888,106620.0,106610.0,1.11884454]
[1734463787751,0.046888,106620.0,106610.0,1.77449637]
[1734463788148,0.046888,106620.0,106610.0,1.21312759]
[1734463788458,0.046888,106620.0,106610.0,1.22191407]
[1734463788643,0.046888,106620.0,106610.0,1.58271407]
[1734463789449,0.046888,106620.0,106610.0,1.22191407]
[1734463789649,0.046888,106620.0,106610.0,1.58271407]
[1734463790146,0.046888,106620.0,106610.0,1.50062341]
[1734463790346,0.046888,106620.0,106610.0,1.40634036]
[1734463790754,0.046888,106620.0,106610.0,1.04554036]
[1734463790950,0.046888,106620.0,106610.0,1.34001194]
[1734463791156,0.046888,106620.0,106610.0,0.77852967]
[1734463792544,0.046888,106620.0,106610.0,0.93224478]
[1734463792749,0.046888,106620.0,106610.0,0.77852967]
[1734463794358,0.046888,106620.0,106610.0,0.77968829]
[1734463796361,0.046888,106620.0,106610.0,0.78968829]
[1734463798953,0.046888,106620.0,106610.0,0.76060648]
[1734463799153,0.046888,106620.0,106610.0,0.79011753]
[1734463800253,0.046888,106620.0,106610.0,0.49748953]
[1734463800455,0.407688,106620.0,106610.0,1.15325485]
[1734463800656,0.407688,106620.0,106610.0,1.81249204]
[1734463800853,0.046888,106620.0,106610.0,1.65882277]
[1734463801057,0.046888,106620.0,106610.0,1.15325485]
[1734463801371,0.407688,106620.0,106610.0,1.08610586]
[1734463801663,0.407688,106620.0,106610.0,1.18976922]
[1734463801664,0.46587928,106620.0,106610.0,1.18976922]
[1734463801960,0.80517928,106620.0,106610.0,1.18976922]
[1734463802160,0.80517928,106620.0,106610.0,0.748459]
[1734463802161,2.30517928,106620.0,106610.0,0.748459]
[1734463802459,2.30517928,106620.0,106610.0,0.653104]
[1734463802460,0.80517928,106620.0,106610.0,0.653104]
[1734463802656,0.88111475,106620.0,106610.0,6.5e-07]
[1734463802960,0.046897,106600.0,106590.0,0.96505153]
[1734463803163,0.84443247,106600.0,106590.0,1.12474141]
[1734463803365,0.84443247,106600.0,106590.0,0.61912589]
[1734463803566,1.18543247,106600.0,106580.0,0.00140713]
[1734463803753,0.48363647,106590.0,106580.0,0.01]
[1734463803954,0.78363647,106590.0,106580.0,0.01]
[1734463805162,0.046906,106580.0,106570.0,1.75846218]
[1734463805467,0.48364147,106580.0,106570.0,1.75796218]
[1734463806166,0.407706,106580.0,106570.0,1.75796218]
[1734463806463,0.407706,106580.0,106570.0,1.75846218]
[1734463806856,0.444906,106580.0,106570.0,1.75846218]
[1734463807365,0.444906,106580.0,106570.0,1.30852617]
[1734463807569,0.444906,106580.0,106570.0,1.09058919]
[1734463808064,0.407706,106580.0,106570.0,1.09058919]
[1734463808261,0.046906,106580.0,106570.0,1.16652466]
[1734463808457,0.046906,106580.0,106570.0,0.09961412]
[1734463809056,0.046906,106580.0,106570.0,0.08593547]
[1734463811062,0.046906,106580.0,106570.0,0.01]
[1734463811265,0.407706,106580.0,106570.0,0.01]
[1734463812467,0.48364147,106580.0,106570.0,0.01]
[1734463812870,0.407706,106580.0,106570.0,0.01]
[1734463823968,0.046906,106580.0,106570.0,0.44673547]
[1734463824266,0.046906,106580.0,106570.0,0.17183547]
[1734463826062,0.407706,106580.0,106570.0,0.0959]
[1734463827878,0.407706,106580.0,106570.0,0.17183547]
[1734463830478,0.407706,106580.0,106570.0,0.0534]
[1734463830667,0.48364147,106580.0,106570.0,0.01]
[1734463831863,0.52564147,106580.0,106570.0,0.01]
[1734463832075,2.02564147,106580.0,106570.0,0.01]
[1734463832462,0.52564147,106580.0,106570.0,0.01]
[1734463833765,0.449706,106580.0,106570.0,0.01]
[1734463836084,0.82564147,106580.0,106570.0,0.01]
[1734463836269,0.04691,106570.0,106560.0,1e-06]
[1734463836581,0.48364547,106570.0,106560.0,1e-06]
[1734463836976,0.40771,106570.0,106560.0,1e-06]
[1734463841379,0.48364547,106570.0,106560.0,1e-06]
[1734463842977,0.48376144,106570.0,106560.0,1e-06]
[1734463843872,0.78376144,106570.0,106560.0,1e-06]
[1734463844678,0.86652678,106570.0,106560.0,1e-06]
[1734463845077,0.94246225,106570.0,106560.0,1e-06]
[1734463845387,0.97662384,106570.0,106560.0,1e-06]
[1734463845878,0.86652678,106570.0,106560.0,1e-06]
[1734463846079,0.56652678,106570.0,106560.0,1e-06]
[1734463846274,0.48376144,106570.0,106560.0,1e-06]
[1734463846587,0.56652678,106570.0,106560.0,1e-06]
[1734463846886,0.40782597,106570.0,106560.0,1e-06]
[1734463847094,0.48376144,106570.0,106560.0,1e-06]
[1734463847981,0.80263639,106570.0,106560.0,1e-06]
[1734463848285,0.58540173,106570.0,106560.0,1e-06]
[1734463848494,0.50263639,106570.0,106560.0,1e-06]
[1734463848885,2.00263639,106570.0,106560.0,1e-06]
[1734463849084,2.30263639,106570.0,106560.0,1e-06]
[1734463849481,2.00263639,106570.0,106560.0,1e-06]
[1734463849686,0.42670092,106570.0,106560.0,1e-06]
[1734463850199,0.50263639,106570.0,106560.0,1e-06]
[1734463852693,2.00263639,106570.0,106560.0,1e-06]
[1734463855400,2.30263639,106570.0,106560.0,1e-06]
[1734463856003,2.38540173,106570.0,106560.0,1e-06]
[1734463856201,2.30263639,106570.0,106560.0,1e-06]
[1734463857188,2.38540173,106570.0,106560.0,1e-06]
[1734463857391,2.30263639,106570.0,106560.0,1e-06]
[1734463859402,2.00263639,106570.0,106560.0,1e-06]
[1734463859595,0.50263639,106570.0,106560.0,1e-06]
[1734463860000,0.80263639,106570.0,106560.0,1e-06]
[1734463860196,0.88540173,106570.0,106560.0,1e-06]
[1734463860904,0.58540173,106570.0,106560.0,1e-06]
[1734463861208,0.88540173,106570.0,106560.0,1e-06]
[1734463862291,0.9613372,106570.0,106560.0,1e-06]
[1734463862489,0.9613372,106570.0,106530.0,0.0882]
[1734463862490,0.046923,106540.0,106530.0,0.0882]
[1734463862694,0.768523,106540.0,106530.0,0.0982]
[1734463863996,0.84445847,106540.0,106530.0,0.0982]
[1734463866201,0.84445847,106540.0,106530.0,0.0541]
[1734463867202,0.86529038,106540.0,106530.0,0.0541]
[1734463868906,0.78935491,106540.0,106530.0,0.0541]
[1734463869204,0.86529038,106540.0,106530.0,0.0541]
[1734463871210,0.046928,106530.0,106520.0,1e-06]
[1734463871406,0.48366347,106530.0,106520.0,1e-06]
[1734463879318,0.60319894,106530.0,106520.0,1e-06]
[1734463879707,2.02726347,106530.0,106520.0,1e-06]
[1734463880720,0.52726347,106530.0,106520.0,1e-06]
[1734463889022,0.407728,106530.0,106520.0,1e-06]
[1734463890122,0.336928,106530.0,106520.0,0.07593647]
[1734463890329,0.336928,106530.0,106520.0,0.37593647]
[1734463890330,0.383856,106530.0,106520.0,0.37593647]
[1734463890516,0.383856,106530.0,106520.0,0.07593647]
[1734463890717,0.046928,106530.0,106520.0,0.07593647]
[1734463891826,0.046928,106530.0,106520.0,1e-06]
[1734463892025,0.48366347,106530.0,106520.0,0.02105387]
[1734463892220,0.48366347,106530.0,106520.0,1e-06]
[1734463892417,0.407728,106530.0,106520.0,1e-06]
[1734463893020,0.046928,106530.0,106520.0,1e-06]
[1734463893229,0.046928,106530.0,106520.0,0.07593647]
[1734463893530,0.046928,106530.0,106520.0,0.78366847]
[1734463894524,0.046928,106530.0,106520.0,0.48366847]
[1734463894724,0.046928,106530.0,106520.0,0.407733]
[1734463895025,0.046928,106530.0,106520.0,0.48366847]
[1734463896734,0.046928,106530.0,106520.0,0.5049492]
[1734463898127,0.046928,106530.0,106520.0,0.8049492]
[1734463898324,0.046921,106550.0,106540.0,0.046919]
[1734463898626,0.046921,106550.0,106540.0,0.12285447]
[1734463898933,0.046921,106550.0,106540.0,0.046919]
[1734463899625,0.046921,106550.0,106540.0,0.707719]
[1734463900436,0.046921,106550.0,106540.0,0.346919]
[1734463900624,0.046921,106550.0,106530.0,0.47983547]
[1734463900828,0.046923,106540.0,106530.0,0.52676147]
[1734463901131,0.046923,106540.0,106530.0,0.82676147]
[1734463901725,0.046923,106540.0,106530.0,0.91346147]
[1734463902135,0.046923,106540.0,106530.0,0.61346147]
[1734463902341,0.046923,106540.0,106530.0,0.91346147]
[1734463904236,0.04832631,106560.0,106530.0,0.98939694]
[1734463904438,0.046922,106550.0,106540.0,0.407721]
[1734463904741,0.046922,106550.0,106540.0,0.046921]
[1734463905745,0.046922,106550.0,106540.0,0.12285647]
[1734463906341,0.046922,106550.0,106540.0,0.07593547]
[1734463906934,0.046922,106550.0,106540.0,0.12285847]
[1734463907130,0.046922,106550.0,106540.0,0.42285847]
[1734463907336,0.046922,106550.0,106540.0,0.78365847]
[1734463907745,0.046922,106550.0,106540.0,0.42285847]
[1734463907936,0.046922,106550.0,106540.0,0.78365847]
[1734463910139,0.046922,106550.0,106540.0,0.48365847]
[1734463910547,0.046922,106550.0,106540.0,0.80488884]
[1734463910843,0.046922,106550.0,106540.0,0.14408884]
[1734463911140,0.046922,106550.0,106540.0,0.06815337]
[1734463911437,0.046922,106550.0,106540.0,0.02123037]
[1734463911438,0.407722,106550.0,106540.0,0.02123037]
[1734463911641,0.453622,106550.0,106530.0,0.56946047]
[1734463911839,0.046923,106540.0,106530.0,0.493525]
[1734463912745,0.407723,106540.0,106530.0,0.0858]
[1734463912940,0.046923,106540.0,106530.0,0.22971176]
[1734463913748,0.046923,106540.0,106530.0,0.59051176]
[1734463915944,0.046923,106540.0,106530.0,0.22971176]
[1734463916146,0.046923,106540.0,106530.0,0.48366347]
[1734463917247,0.046923,106540.0,106530.0,0.502184]
[1734463921038,0.046923,106540.0,106530.0,0.141384]
[1734463922442,0.046923,106540.0,106530.0,0.502184]
[1734463922747,0.046923,106540.0,106530.0,0.21731947]
[1734463922940,0.138421,106550.0,106540.0,0.046923]
[1734463923250,0.138421,106550.0,106540.0,0.586728]
[1734463923946,0.138421,106550.0,106540.0,0.57794152]
[1734463924147,0.092821,106550.0,106540.0,0.57794152]
[1734463924449,0.092821,106550.0,106540.0,0.48365847]
[1734463926740,0.092821,106550.0,106540.0,0.12285847]
[1734463926945,0.092821,106550.0,106540.0,0.046923]
[1734463927653,0.092821,106550.0,106530.0,0.455256]
[1734463927849,0.407723,106540.0,106530.0,0.01852053]
[1734463928045,0.046928,106530.0,106520.0,0.046931]
[1734463928351,0.046928,106530.0,106520.0,0.12286647]
[1734463928557,0.046928,106530.0,106520.0,0.14152161]
[1734463929558,0.046928,106530.0,106520.0,0.50232161]
[1734463930153,0.046928,106530.0,106520.0,0.14152161]
[1734463930555,0.046928,106530.0,106520.0,0.09459161]
[1734463930855,0.407728,106530.0,106520.0,0.09459161]
[1734463931247,0.407728,106530.0,106520.0,0.01865614]
[1734463935754,0.407728,106530.0,106520.0,0.09459161]
[1734463939161,0.407728,106530.0,106520.0,0.14152361]
[1734463940451,0.407728,106530.0,106520.0,0.06558814]
[1734463940863,0.046928,106530.0,106520.0,0.06558814]
[1734463941155,0.046928,106530.0,106520.0,0.14152361]
[1734463942947,0.046928,106530.0,106520.0,0.06558814]
[1734463945749,0.046928,106530.0,106520.0,0.42638814]
[1734463945949,0.407728,106530.0,106520.0,0.01865614]
[1734463948066,0.046928,106530.0,106520.0,0.16544792]
[1734463948369,0.448,106540.0,106520.0,0.11551803]
[1734463948554,0.49792989,106540.0,106520.0,0.11551803]
[1734463948863,0.046928,106530.0,106520.0,0.11551803]
[1734463950067,0.046928,106530.0,106520.0,0.06558814]
[1734463950765,0.046928,106530.0,106520.0,0.01865614]
[1734463950766,0.45765789,106530.0,106520.0,0.01865614]
[1734463950958,0.407728,106530.0,106520.0,0.01865614]
[1734463951455,0.407728,106530.0,106520.0,0.06858603]
[1734463951965,0.45765789,106530.0,106520.0,0.01865614]
[1734463952168,0.45765789,106530.0,106510.0,0.02257407]
[1734463952361,0.046936,106510.0,106500.0,0.85235454]
[1734463952560,0.046936,106510.0,106500.0,0.86235454]
[1734463952962,0.046936,106510.0,106500.0,0.85355838]
[1734463953162,0.046936,106510.0,106500.0,0.86235454]
[1734463953371,0.046936,106510.0,106500.0,0.83098431]
[1734463954262,0.046936,106510.0,106500.0,0.85355838]
[1734463954569,0.046936,106510.0,106500.0,0.83098431]
[1734463954774,0.094436,106510.0,106500.0,0.83098431]
[1734463955268,0.455236,106510.0,106500.0,0.83098431]
[1734463955470,0.506936,106510.0,106500.0,0.78404531]
[1734463955661,0.506936,106510.0,106500.0,0.13376865]
[1734463955863,0.60856589,106510.0,106500.0,0.13376865]
[1734463956075,0.63478241,106510.0,106500.0,0.2280517]
[1734463956578,0.63478241,106510.0,106500.0,0.13376865]
[1734463956765,0.558636,106510.0,106500.0,0.13376865]